bitfinex-derivatives/quotes_BNBF0:USTF0_20250128
["timestamp","ask_amount","ask_price","bid_price","bid_amount"]
[1738067374326,0.27237732,675.21,673.67,0.29688126]
[1738067374531,0.27237732,675.22,673.67,0.29688126]
[1738067380437,0.29619537,675.23,673.67,0.29688126]
[1738067387536,0.27232607,675.22,673.67,0.29688126]
[1738067393249,0.27232607,675.22,673.88,1.10302971]
[1738067393449,0.27232607,675.22,673.89,0.29678434]
[1738067396251,0.27232607,675.22,673.9,1.10302971]
[1738067396445,0.27232607,675.22,673.91,0.29677553]
[1738067398154,0.29619537,675.23,673.91,0.29677553]
[1738067399547,0.29619537,675.23,674.05,1.10302971]
[1738067401451,0.27236127,675.22,674.05,1.10302971]
[1738067401955,0.29619537,675.23,674.05,1.10302971]
[1738067402253,0.27241604,675.22,673.91,0.29677553]
[1738067403554,0.29620414,675.21,673.91,0.29677553]
[1738067403753,0.27241604,675.2,673.91,0.29677553]
[1738067404152,0.29621291,675.19,673.91,0.29677553]
[1738067408459,1.84407774,675.19,673.91,0.29677553]
[1738067409554,0.29621291,675.19,673.91,0.29677553]
[1738067411751,0.27234713,675.18,673.91,0.29677553]
[1738067412756,0.29621291,675.19,673.91,0.29677553]
[1738067412959,0.27235515,675.18,673.91,0.29677553]
[1738067414454,0.29621291,675.19,673.91,0.29677553]
[1738067414658,0.27236189,675.18,673.91,0.29677553]
[1738067416761,0.29621291,675.19,673.91,0.29677553]
[1738067416961,0.27239293,675.18,673.91,0.29677553]
[1738067417162,0.29622169,675.17,673.91,0.29677553]
[1738067417366,0.27239293,675.16,673.91,0.29677553]
[1738067417959,0.27241328,675.15,673.91,0.29677553]
[1738067418162,0.56864813,675.14,673.91,0.29677553]
[1738067418360,0.27241328,675.13,673.91,0.29677553]
[1738067418861,0.29624363,675.12,673.91,0.29677553]
[1738067419062,0.27241328,675.11,673.91,0.29677553]
[1738067419563,0.29624363,675.12,673.91,0.29677553]
[1738067419764,0.27241315,675.11,673.91,0.29677553]
[1738067420063,2.11644567,675.11,673.91,0.29677553]
[1738067420263,1.84403252,675.11,673.91,0.29677553]
[1738067421858,0.27240747,675.1,673.91,0.29677553]
[1738067430168,0.29625679,675.09,673.91,0.29677553]
[1738067430467,0.27240747,675.08,673.91,0.29677553]
[1738067431869,0.27240747,675.08,673.56,1.10302971]
[1738067433170,0.27240747,675.08,673.57,0.29692533]
[1738067433570,0.29626557,675.07,673.57,0.29692533]
[1738067433764,0.27240747,675.06,673.57,0.29692533]
[1738067433967,0.29627435,675.05,673.57,0.29692533]
[1738067434173,0.27240747,675.04,673.57,0.29692533]
[1738067434368,0.29628312,675.03,673.57,0.29692533]
[1738067434570,0.27240747,675.02,673.57,0.29692533]
[1738067434869,1.84448652,675.03,673.57,0.29692533]
[1738067434870,0.2962919,675.01,673.57,0.29692533]
[1738067435073,0.27247431,675.0,673.57,0.29692533]
[1738067435372,0.29630068,674.99,673.57,0.29692533]
[1738067435573,0.27247431,674.98,673.57,0.29692533]
[1738067435873,0.29630946,674.97,673.57,0.29692533]
[1738067436072,0.27247431,674.96,673.57,0.29692533]
[1738067436274,0.29631824,674.95,673.57,0.29692533]
[1738067436467,0.27247431,674.94,673.57,0.29692533]
[1738067436666,0.27248078,674.93,673.57,0.29692533]
[1738067438268,0.29632263,674.94,673.57,0.29692533]
[1738067438474,0.27247757,674.93,673.57,0.29692533]
[1738067441006,0.29632263,674.94,673.57,0.29692533]
[1738067441874,0.27244563,674.93,673.57,0.29692533]
[1738067442380,0.29632263,674.94,673.57,0.29692533]
[1738067443083,0.27244236,674.93,673.57,0.29692533]
[1738067443479,0.29632263,674.94,673.57,0.29692533]
[1738067443682,0.27245781,674.93,673.57,0.29692533]
[1738067444984,0.27245781,674.93,673.58,1.54823784]
[1738067445484,1.54824358,674.92,673.58,1.54823784]
[1738067445685,1.54824358,674.92,673.64,1.10652717]
[1738067446784,0.27247397,674.91,673.64,1.10652717]
[1738067447082,0.27247633,674.9,673.64,1.10652717]
[1738067447278,0.27247633,674.91,673.64,1.10652717]
[1738067447478,0.27247633,674.89,673.64,1.10652717]
[1738067447682,0.27247633,674.88,673.64,1.10652717]
[1738067447883,0.27247633,674.91,673.64,1.10652717]
[1738067448680,1.54824358,674.92,673.64,1.10652717]
[1738067449587,1.54824358,674.92,673.62,1.10652717]
[1738067452385,1.54824358,674.92,673.57,0.29692533]
[1738067456895,0.27249078,674.91,673.57,0.29692533]
[1738067461799,0.27254927,674.9,673.57,0.29692533]
[1738067461995,0.27254927,674.91,673.57,0.29692533]
[1738067462204,0.27254927,674.9,673.57,0.29692533]
[1738067462399,0.27254927,674.91,673.57,0.29692533]
[1738067462594,0.27254927,674.9,673.57,0.29692533]
[1738067462799,0.27254927,674.89,673.57,0.29692533]
[1738067462999,0.27254927,674.91,673.57,0.29692533]
[1738067463202,0.27254927,674.9,673.57,0.29692533]
[1738067463396,0.27254927,674.91,673.57,0.29692533]
[1738067463696,0.27254927,674.9,673.57,0.29692533]
[1738067464001,0.27254927,674.89,673.57,0.29692533]
[1738067464194,0.27254927,674.88,673.57,0.29692533]
[1738067464397,0.27254927,674.91,673.57,0.29692533]
[1738067464699,0.56888946,674.9,673.57,0.29692533]
[1738067464897,0.56889385,674.89,673.57,0.29692533]
[1738067465097,0.56889825,674.88,673.57,0.29692533]
[1738067465302,0.27254927,674.87,673.57,0.29692533]
[1738067465500,0.29635776,674.86,673.57,0.29692533]
[1738067465698,0.27254927,674.85,673.57,0.29692533]
[1738067466104,1.54859955,674.84,673.57,0.29692533]
[1738067466305,0.27254927,674.83,673.57,0.29692533]
[1738067466510,0.5689202,674.83,673.57,0.29692533]
[1738067466708,0.27254927,674.82,673.57,0.29692533]
[1738067467002,0.29637972,674.81,673.57,0.29692533]
[1738067467209,0.27254927,674.8,673.57,0.29692533]
[1738067468109,0.2963885,674.79,673.57,0.29692533]
[1738067468309,0.27254927,674.78,673.57,0.29692533]
[1738067468701,0.2963885,674.79,673.57,0.29692533]
[1738067468903,0.27260684,674.78,673.57,0.29692533]
[1738067469107,0.27260684,674.78,673.46,1.10652717]
[1738067469315,0.29639729,674.77,673.46,1.10652717]
[1738067469508,0.29639729,674.77,672.73,2.76321593]
[1738067469509,0.27260684,674.76,673.39,1.10652717]
[1738067469808,0.27260684,674.75,673.39,1.10652717]
[1738067470008,0.27260684,674.74,673.39,1.10652717]
[1738067470208,0.29639729,674.77,673.39,1.10652717]
[1738067470209,0.27260684,674.73,673.39,1.10652717]
[1738067470410,0.27260684,674.72,673.39,1.10652717]
[1738067470708,0.56903048,674.71,673.39,1.10652717]
[1738067471007,0.56903488,674.7,673.39,1.10652717]
[1738067471206,0.27260684,674.69,673.39,1.10652717]
[1738067472208,0.29644122,674.67,673.39,1.10652717]
[1738067472408,0.27260684,674.66,673.39,1.10652717]
[1738067472605,0.27260684,674.66,673.31,1.10652717]
[1738067473407,1.54942119,674.65,673.31,1.10652717]
[1738067473609,0.27260684,674.64,673.31,1.10652717]
[1738067473810,0.27260684,674.63,673.31,1.10652717]
[1738067474010,0.27260684,674.62,673.31,1.10652717]
[1738067474211,0.27260684,674.61,673.31,1.10652717]
[1738067474619,0.27260684,674.6,673.31,1.10652717]
[1738067474809,0.27260684,674.59,673.31,1.10652717]
[1738067475011,0.27260684,674.58,673.31,1.10652717]
[1738067475211,1.54942119,674.65,673.31,1.10652717]
[1738067475212,0.27260684,674.57,673.31,1.10652717]
[1738067475411,1.54942119,674.65,673.31,1.10652717]
[1738067475412,0.27260684,674.64,673.31,1.10652717]
[1738067475612,0.27260684,674.63,673.31,1.10652717]
[1738067475805,0.27260684,674.64,673.31,1.10652717]
[1738067476008,1.10721914,674.55,672.57,1.10652717]
[1738067476312,0.27260684,674.54,672.58,0.29736239]
[1738067479411,0.27260684,674.64,672.58,0.29736239]
[1738067480510,1.54942119,674.65,672.58,0.29736239]
[1738067480511,0.27260684,674.63,672.58,0.29736239]
[1738067480812,1.54942119,674.65,672.58,0.29736239]
[1738067482008,0.29645879,674.63,672.58,0.29736239]
[1738067482608,0.27276441,674.62,672.58,0.29736239]
[1738067483013,0.29645879,674.63,672.58,0.29736239]
[1738067483314,0.27275819,674.62,672.58,0.29736239]
[1738067483517,0.27275819,674.61,672.58,0.29736239]
[1738067483814,0.29647637,674.59,672.58,0.29736239]
[1738067484113,0.27275819,674.58,672.58,0.29736239]
[1738067484315,0.73922092,675.05,672.58,0.29736239]
[1738067484316,0.29648956,674.56,672.58,0.29736239]
[1738067484508,0.27275819,674.55,672.58,0.29736239]
[1738067484714,0.29650275,674.53,672.58,0.29736239]
[1738067484913,0.27275819,674.52,672.58,0.29736239]
[1738067485314,0.29651593,674.5,672.58,0.29736239]
[1738067485614,0.27275819,674.49,672.58,0.29736239]
[1738067485816,0.29652912,674.47,672.58,0.29736239]
[1738067486016,0.27275819,674.46,672.58,0.29736239]
[1738067486216,0.29654231,674.44,672.58,0.29736239]
[1738067486814,0.27275983,674.43,672.58,0.29736239]
[1738067487615,0.2965555,674.41,672.58,0.29736239]
[1738067487810,0.27275983,674.4,672.58,0.29736239]
[1738067488314,0.2965643,674.39,672.58,0.29736239]
[1738067488517,0.27275983,674.38,672.58,0.29736239]
[1738067489010,0.29657309,674.37,672.58,0.29736239]
[1738067489219,0.27275983,674.36,672.58,0.29736239]
[1738067489409,0.29658189,674.35,672.58,0.29736239]
[1738067489614,0.27275983,674.34,672.58,0.29736239]
[1738067489815,0.29659069,674.33,672.58,0.29736239]
[1738067490015,0.27275983,674.32,672.58,0.29736239]
[1738067490213,0.29659948,674.31,672.58,0.29736239]
[1738067490408,0.27275983,674.3,672.58,0.29736239]
[1738067491018,0.27275237,674.29,672.58,0.29736239]
[1738067491318,0.27275237,674.28,672.58,0.29736239]
[1738067491517,0.27275237,674.3,672.58,0.29736239]
[1738067492109,0.29659948,674.31,672.58,0.29736239]
[1738067493116,0.27269802,674.3,672.58,0.29736239]
[1738067494216,0.29659948,674.31,672.58,0.29736239]
[1738067494419,0.2726864,674.3,672.58,0.29736239]
[1738067496518,0.29659948,674.31,672.58,0.29736239]
[1738067497422,0.29659948,674.31,672.66,1.10652717]
[1738067498120,0.29659948,674.31,672.68,0.29731818]
[1738067501623,0.29659948,674.31,672.75,1.10652717]
[1738067502324,0.29659948,674.31,672.77,0.29727841]
[1738067504324,0.29659948,674.31,672.89,1.10652717]
[1738067506925,0.29659948,674.31,673.01,1.10652717]
[1738067509635,0.29659948,674.31,673.04,1.10652717]
[1738067509636,0.27265257,674.3,673.04,1.10652717]
[1738067510533,0.29659948,674.31,673.04,1.10652717]
[1738067510733,0.2726495,674.3,673.04,1.10652717]
[1738067510933,0.2726495,674.3,673.05,0.29715474]
[1738067512336,0.27265685,674.29,673.05,0.29715474]
[1738067512538,0.27265685,674.3,673.05,0.29715474]
[1738067512733,0.29659948,674.31,673.05,0.29715474]
[1738067512734,0.27265685,674.29,673.05,0.29715474]
[1738067512930,0.27265685,674.3,673.05,0.29715474]
[1738067513237,0.29659948,674.31,673.05,0.29715474]
[1738067513238,0.27265685,674.29,673.11,1.10652717]
[1738067513538,0.27265685,674.28,673.12,0.29712384]
[1738067513729,0.29659948,674.31,673.12,0.29712384]
[1738067514135,0.27265116,674.3,673.12,0.29712384]
[1738067514334,0.29659948,674.31,673.12,0.29712384]
[1738067514729,0.27267099,674.3,673.12,0.29712384]
[1738067515336,0.29659948,674.31,673.12,0.29712384]
[1738067517140,0.29659948,674.31,673.13,1.10652717]
[1738067520338,0.29659948,674.31,673.12,0.29712384]
[1738067522741,0.27276677,674.3,673.12,0.29712384]
[1738067524642,0.29660828,674.29,673.12,0.29712384]
[1738067524843,0.27276677,674.28,673.12,0.29712384]
[1738067525046,0.27276677,674.28,672.82,1.10652717]
[1738067526644,0.29661708,674.27,672.82,1.10652717]
[1738067526843,0.27276677,674.26,672.82,1.10652717]
[1738067527451,1.54999629,674.25,672.82,1.10652717]
[1738067527651,0.27276677,674.24,672.82,1.10652717]
[1738067528049,1.54999629,674.25,672.82,1.10652717]
[1738067528248,0.5694329,674.24,672.82,1.10652717]
[1738067528450,0.56943729,674.23,672.82,1.10652717]
[1738067528751,0.56944169,674.22,672.82,1.10652717]
[1738067529053,1.54999629,674.25,672.83,1.10652717]
[1738067529054,0.56944609,674.21,672.83,1.10652717]
[1738067529353,0.27280262,674.2,672.83,1.10652717]
[1738067530351,0.29665227,674.19,672.83,1.10652717]
[1738067530544,0.27280262,674.18,672.83,1.10652717]
[1738067530749,0.29666107,674.17,672.83,1.10652717]
[1738067530945,0.27280262,674.16,672.83,1.10652717]
[1738067532047,0.29666988,674.15,672.8,1.10652717]
[1738067532252,0.27280262,674.14,672.8,1.10652717]
[1738067532953,0.29667868,674.13,672.8,1.10652717]
[1738067533152,0.27280262,674.12,672.8,1.10652717]
[1738067533548,0.29668748,674.11,672.8,1.10652717]
[1738067533749,0.27280262,674.1,672.8,1.10652717]
[1738067534654,0.29668748,674.11,672.8,1.10652717]
[1738067534847,0.27281575,674.1,672.77,1.10652717]
[1738067535358,0.29669628,674.09,672.77,1.10652717]
[1738067535554,0.27281575,674.08,672.77,1.10652717]
[1738067536057,0.29670508,674.07,672.77,1.10652717]
[1738067536250,0.27281575,674.06,672.77,1.10652717]
[1738067536650,0.56952524,674.06,672.77,1.10652717]
[1738067536856,0.27281575,674.05,672.77,1.10652717]
[1738067537756,1.55023796,674.04,672.77,1.10652717]
[1738067537955,0.27281575,674.03,672.77,1.10652717]
[1738067539259,0.27281575,674.03,672.67,1.10652717]
[1738067539758,0.27281575,674.03,672.67,1.40384977]
[1738067540658,0.27282793,674.02,672.67,1.40384977]
[1738067540858,0.27282793,674.01,672.67,1.40384977]
[1738067541157,0.27282793,674.0,672.67,1.40384977]
[1738067541355,1.55023796,674.04,672.67,1.40384977]
[1738067541557,0.27283293,674.03,672.67,1.40384977]
[1738067542455,0.27283293,674.03,672.67,0.2973226]
[1738067543054,1.55023796,674.04,672.67,0.2973226]
[1738067543253,0.27283703,674.03,672.67,0.2973226]
[1738067544859,0.27281619,674.02,672.67,0.2973226]
[1738067545054,1.55023796,674.04,672.67,0.2973226]
[1738067545357,0.27279728,674.03,672.67,0.2973226]
[1738067548968,0.27279728,674.03,672.87,1.10652717]
[1738067549664,1.55023796,674.04,672.87,1.10652717]
[1738067549865,0.27279628,674.03,672.87,1.10652717]
[1738067551965,0.27279628,674.03,672.94,1.10652717]
[1738067554272,0.27279628,674.03,672.98,1.10652717]
[1738067557972,0.56951897,674.03,672.98,1.10652717]
[1738067558172,0.27279628,674.02,672.98,1.10652717]
[1738067558770,1.38001542,674.02,673.0,1.10652717]
[1738067558970,1.10721914,674.02,673.0,1.10652717]
[1738067561476,1.10721914,674.02,672.82,1.10302971]
[1738067561477,0.29672269,674.03,672.82,1.10652717]
[1738067563180,0.27284624,674.02,672.82,1.10652717]
[1738067564675,0.27284624,674.02,672.81,1.10652717]
[1738067566275,0.29672269,674.03,672.81,1.10652717]
[1738067568581,0.29672269,674.03,672.87,1.10652717]
[1738067571483,0.29672269,674.03,672.69,0.29731377]
[1738067572483,0.29672269,674.03,672.69,1.84760352]
[1738067575485,0.29672269,674.03,672.69,0.29731377]
[1738067576685,0.27286626,674.02,672.69,0.29731377]
[1738067576886,0.2967315,674.01,672.69,0.29731377]
[1738067577086,0.27286626,674.0,672.69,0.29731377]
[1738067577287,0.2967403,673.99,672.69,0.29731377]
[1738067577586,0.27286626,673.98,672.69,0.29731377]
[1738067577787,0.2967403,673.99,672.69,0.29731377]
[1738067578387,1.82326466,673.98,672.69,0.29731377]
[1738067578586,0.56961466,673.97,672.69,0.29731377]
[1738067578887,0.27286555,673.96,672.69,0.29731377]
[1738067581685,0.27286555,673.96,672.81,1.10652717]
[1738067581887,0.29674911,673.97,672.81,1.10652717]
[1738067584291,0.29674911,673.97,672.95,1.10652717]
[1738067587292,0.29674911,673.97,672.97,1.10652717]
[1738067591096,0.29674911,673.97,673.06,1.10652717]
[1738067593795,0.29674911,673.97,673.0,1.10652717]
[1738067595193,1.10721914,674.36,673.0,1.10652717]
[1738067595399,1.54962818,674.34,673.0,1.10652717]
[1738067595599,0.27269957,674.33,673.0,1.10652717]
[1738067595794,0.27269957,674.33,673.01,0.2971724]
[1738067597596,1.54962818,674.34,673.01,0.2971724]
[1738067598500,1.10721914,674.47,673.01,0.2971724]
[1738067598803,1.54948443,674.39,673.01,0.2971724]
[1738067598997,0.29653352,674.46,673.01,0.2971724]
[1738067599203,1.54945569,674.39,673.01,0.2971724]
[1738067599605,1.54945569,674.39,673.08,1.10652717]
[1738067603608,1.54945569,674.39,673.01,0.2971724]
[1738067608504,0.27266177,674.38,673.01,0.2971724]
[1738067609807,0.27266177,674.38,673.02,1.10652717]
[1738067610009,0.27266177,674.38,673.03,0.29716357]
[1738067612006,1.54945569,674.39,673.03,0.29716357]
[1738067612207,0.27268043,674.38,673.03,0.29716357]
[1738067615114,0.27268043,674.38,673.04,1.10652717]
[1738067615614,0.27268043,674.38,673.05,0.29715474]
[1738067616309,1.54945569,674.39,673.05,0.29715474]
[1738067616511,0.27266673,674.38,673.05,0.29715474]
[1738067618113,0.27266302,674.37,673.14,1.10652717]
[1738067618315,0.27266302,674.38,673.14,1.10652717]
[1738067618508,0.27266302,674.37,673.14,1.10652717]
[1738067618713,0.27266302,674.36,673.14,1.10652717]
[1738067619015,0.27266302,674.35,673.14,1.10652717]
[1738067619210,0.27266302,674.38,673.14,1.10652717]
[1738067619410,0.27266302,674.37,673.14,1.10652717]
[1738067619717,0.27266302,674.36,673.14,1.10652717]
[1738067619916,0.27266302,674.44,673.14,1.10652717]
[1738067620117,0.27266302,674.43,673.14,1.10652717]
[1738067620416,0.27266302,674.42,673.14,1.10652717]
[1738067620613,0.27266302,674.44,673.14,1.10652717]
[1738067620816,0.27266302,674.43,673.22,1.10652717]
[1738067621117,0.27266302,674.42,673.22,1.10652717]
[1738067621417,0.27266302,674.41,673.22,1.10652717]
[1738067621617,0.27266302,674.44,673.22,1.10652717]
[1738067621812,0.27266302,674.43,673.22,1.10652717]
[1738067622017,0.27266302,674.42,673.22,1.10652717]
[1738067622218,0.27266302,674.41,673.22,1.10652717]
[1738067622418,0.27266302,674.44,673.22,1.10652717]
[1738067622617,0.27266302,674.43,673.22,1.10652717]
[1738067622818,0.27266302,674.44,673.22,1.10652717]
[1738067623021,0.27266302,674.43,673.22,1.10652717]
[1738067623218,0.27265569,674.42,673.22,1.10652717]
[1738067623518,0.27265569,674.41,673.22,1.10652717]
[1738067623720,0.27265569,674.4,673.3,1.10652717]
[1738067623918,0.27265569,674.39,673.3,1.10652717]
[1738067624121,0.27265569,674.44,673.3,1.10652717]
[1738067624320,0.27265569,674.43,673.3,1.10652717]
[1738067624518,0.27265569,674.44,673.3,1.10652717]
[1738067624714,0.27265569,674.43,673.3,1.10652717]
[1738067624918,1.54930623,674.45,673.3,1.10652717]
[1738067624919,0.27265569,674.42,673.3,1.10652717]
[1738067625120,0.27265569,674.41,673.3,1.10652717]
[1738067625317,0.27265569,674.44,673.3,1.10652717]
[1738067625617,0.27265569,674.43,673.3,1.10652717]
[1738067625823,0.27265569,674.44,673.3,1.10652717]
[1738067626023,0.27265569,674.43,673.3,1.10652717]
[1738067626321,0.27265569,674.42,673.3,1.10652717]
[1738067626534,1.54930623,674.45,673.29,1.10652717]
[1738067626535,0.27265569,674.41,673.29,1.10652717]
[1738067626722,0.27265569,674.44,673.29,1.10652717]
[1738067626923,0.27265569,674.43,673.29,1.10652717]
[1738067627223,0.27265569,674.42,673.29,1.10652717]
[1738067627421,0.27265569,674.44,673.29,1.10652717]
[1738067627621,0.27265569,674.43,673.29,1.10652717]
[1738067627819,0.27265569,674.44,673.29,1.10652717]
[1738067628024,0.27265569,674.43,673.29,1.10652717]
[1738067628219,0.27266897,674.42,673.29,1.10652717]
[1738067628424,1.54930623,674.45,673.29,1.10652717]
[1738067628425,0.27266897,674.44,673.29,1.10652717]
[1738067628619,0.27266897,674.43,673.29,1.10652717]
[1738067628921,0.27266897,674.42,673.29,1.10652717]
[1738067629136,0.27266897,674.44,673.29,1.10652717]
[1738067629322,0.27266897,674.43,673.29,1.10652717]
[1738067629519,0.27266897,674.42,673.29,1.10652717]
[1738067629826,0.27266897,674.41,673.29,1.10652717]
[1738067630024,0.27266897,674.4,673.29,1.10652717]
[1738067630218,0.27266897,674.39,673.29,1.10652717]
[1738067630424,0.27266897,674.44,673.26,1.10652717]
[1738067630627,0.29653352,674.46,673.26,1.10652717]
[1738067630824,1.54929473,674.43,673.26,1.10652717]
[1738067632022,0.27267183,674.42,673.26,1.10652717]
[1738067632829,0.27267183,674.42,673.32,1.10652717]
[1738067633328,1.54929473,674.43,673.32,1.10652717]
[1738067633528,0.27267104,674.42,673.32,1.10652717]
[1738067634931,0.27267782,674.41,673.32,1.10652717]
[1738067635143,1.54929473,674.43,673.32,1.10652717]
[1738067635430,0.27267638,674.42,673.33,1.10652717]
[1738067636632,1.54929473,674.43,673.33,1.10652717]
[1738067637031,0.27267898,674.42,673.33,1.10652717]
[1738067638929,1.37989812,674.42,673.36,1.10652717]
[1738067639236,0.27267898,674.41,673.36,1.10652717]
[1738067643040,0.27267898,674.41,673.35,1.10652717]
[1738067643638,1.10721914,674.42,673.35,1.10652717]
[1738067647441,0.29653352,674.46,673.45,1.10652717]
[1738067651245,0.29653352,674.46,673.06,0.7086131]
[1738067651246,0.29653352,674.46,673.06,1.10652717]
[1738067651438,0.29653352,674.46,673.07,0.29714591]
[1738067653745,0.29653352,674.46,673.07,1.40367308]
[1738067655350,0.27266534,674.45,673.07,1.40367308]
[1738067655942,0.29654231,674.44,673.07,1.40367308]
[1738067656149,0.27266534,674.43,673.07,1.40367308]
[1738067657040,0.29655111,674.42,673.07,1.40367308]
[1738067657243,0.27266534,674.41,673.16,1.10652717]
[1738067657640,1.54950168,674.4,673.16,1.10652717]
[1738067657847,0.27266534,674.39,673.16,1.10652717]
[1738067658045,0.2965687,674.38,673.16,1.10652717]
[1738067658241,0.27266534,674.37,673.16,1.10652717]
[1738067658947,0.56929811,674.36,673.16,1.10652717]
[1738067659146,0.56930251,674.35,673.16,1.10652717]
[1738067659349,0.56930691,674.34,673.16,1.10652717]
[1738067659547,0.27272062,674.33,673.16,1.10652717]
[1738067659742,0.27272062,674.33,673.07,1.40367308]
[1738067659947,0.29659508,674.32,673.07,1.40367308]
[1738067660247,0.27272062,674.31,673.07,1.40367308]
[1738067660448,0.29660388,674.3,673.07,1.40367308]
[1738067660643,0.27272062,674.29,673.07,1.40367308]
[1738067661044,0.29661268,674.28,673.07,1.40367308]
[1738067661245,0.27272062,674.27,673.07,1.40367308]
[1738067662547,0.29662148,674.26,673.07,1.40367308]
[1738067662742,0.27272062,674.25,673.07,0.29714591]
[1738067662945,0.29663028,674.24,673.07,0.29714591]
[1738067663143,0.27272062,674.23,673.07,0.29714591]
[1738067663949,0.2727739,674.22,673.07,0.29714591]
[1738067664143,0.2727739,674.23,673.07,0.29714591]
[1738067664351,0.56941297,674.22,673.07,0.29714591]
[1738067664542,0.2727739,674.21,673.07,0.29714591]
[1738067667053,0.29664787,674.2,673.07,0.29714591]
[1738067667254,0.2727723,674.19,673.07,0.29714591]
[1738067667965,1.54992725,674.18,673.07,0.29714591]
[1738067673063,0.27277586,674.17,673.07,0.29714591]
[1738067673561,1.54992725,674.18,673.07,0.29714591]
[1738067677861,0.27276495,674.17,673.07,0.29714591]
[1738067678066,1.54992725,674.18,673.07,0.29714591]
[1738067683670,0.29666107,674.17,673.07,0.29714591]
[1738067685664,0.27279234,674.16,673.07,0.29714591]
[1738067686066,0.29666107,674.17,673.07,0.29714591]
[1738067686266,0.272815,674.16,673.07,0.29714591]
[1738067686763,0.272815,674.16,672.73,1.10483313]
[1738067687266,0.29666988,674.15,672.73,1.10483313]
[1738067687468,0.272815,674.14,672.73,1.10483313]
[1738067687664,0.29667868,674.13,672.74,1.10483313]
[1738067687865,0.27281755,674.12,672.74,1.10483313]
[1738067688070,0.29668748,674.11,672.74,1.10483313]
[1738067688274,0.27281755,674.1,672.74,1.10483313]
[1738067688471,1.82307277,674.1,672.74,1.10483313]
[1738067688672,0.56951383,674.09,672.74,1.10483313]
[1738067688971,0.56951823,674.08,672.74,1.10483313]
[1738067689171,0.27281755,674.07,672.74,1.10483313]
[1738067689474,0.56952263,674.07,672.74,1.10483313]
[1738067689767,0.27281755,674.06,672.74,1.10483313]
[1738067689972,0.29671389,674.05,672.74,1.10483313]
[1738067690165,0.27281755,674.04,672.74,1.10483313]
[1738067690370,0.29672269,674.03,672.74,1.10483313]
[1738067690569,0.27281755,674.02,672.74,1.10483313]
[1738067691072,0.27281755,674.02,672.83,1.10483313]
[1738067692673,0.2967315,674.01,672.83,1.10483313]
[1738067692969,0.27281755,674.0,672.83,1.10483313]
[1738067693975,0.27281755,674.0,672.88,1.10483313]
[1738067696171,0.2967315,674.01,672.88,1.10483313]
[1738067696367,0.27284109,674.0,672.88,1.10483313]
[1738067696770,0.27284109,674.0,672.87,1.10483313]
[1738067698780,1.55026673,673.99,672.87,1.10483313]
[1738067699079,0.27284109,673.98,672.87,1.10483313]
[1738067701477,0.2967315,674.01,672.87,1.10483313]
[1738067705186,0.2967315,674.01,672.81,1.10483313]
[1738067706386,0.27280727,674.0,672.81,1.10483313]
[1738067708287,0.27280727,674.0,672.94,1.10483313]
[1738067709987,0.2967315,674.01,672.94,1.10483313]
[1738067710193,0.27283353,674.0,672.94,1.10483313]
[1738067710788,0.2967359,674.0,672.94,1.10483313]
[1738067711384,0.2967359,674.0,672.91,1.10483313]
[1738067712086,1.55020343,673.99,672.91,1.10483313]
[1738067714691,1.55020343,673.99,672.68,1.10483313]
[1738067716885,0.2728637,673.98,672.68,1.10483313]
[1738067718090,0.29674911,673.97,672.68,1.10483313]
[1738067718684,0.27286306,673.96,672.66,1.10483313]
[1738067719393,0.29674911,673.97,672.66,1.10483313]
[1738067719596,0.27286523,673.96,672.66,1.10483313]
[1738067721394,0.29674911,673.97,672.66,1.10483313]
[1738067721695,0.29674911,673.97,672.77,1.10483313]
[1738067722991,0.27285199,673.96,672.77,1.10483313]
[1738067723397,0.29674911,673.97,672.77,1.10483313]
[1738067723692,0.27284738,673.96,672.77,1.10483313]
[1738067724097,0.29674911,673.97,672.77,1.10483313]
[1738067724301,0.29674911,673.97,672.85,1.10483313]
[1738067726898,0.27285093,673.96,672.85,1.10483313]
[1738067727097,0.27285093,673.96,672.83,1.10483313]
[1738067729304,0.27285093,673.96,672.85,1.10483313]
[1738067729801,0.29675791,673.95,672.85,1.10483313]
[1738067730001,0.27285093,673.94,672.85,1.10483313]
[1738067731604,0.29675791,673.95,672.85,1.10483313]
[1738067735807,0.29675791,673.95,664.93,8.84009422]
[1738067735808,0.29675791,673.95,672.79,1.10483313]
[1738067741319,0.29675791,673.95,672.87,1.10483313]
[1738067744516,0.29675791,673.95,672.82,1.10483313]
[1738067747420,0.29675791,673.95,672.79,1.10483313]
[1738067750020,1.55030126,673.94,672.79,1.10483313]
[1738067750320,1.55030126,673.94,672.72,1.10483313]
[1738067750818,0.27283877,673.93,672.72,1.10483313]
[1738067751222,1.55030126,673.94,672.72,1.10483313]
[1738067753022,1.55030126,673.94,672.91,1.10483313]
[1738067756022,1.55030126,673.94,672.87,1.10483313]
[1738067759722,1.55030126,673.94,672.95,1.10483313]
[1738067760521,0.29675791,673.95,672.95,1.10483313]
[1738067762629,0.29675791,673.95,672.32,2.25570099]
[1738067762630,0.29675791,673.95,672.88,1.10483313]
[1738067765531,0.29675791,673.95,672.85,1.10483313]
[1738067768331,0.29675791,673.95,672.72,1.10483313]
[1738067770833,0.29675791,673.95,672.71,1.10483313]
[1738067772244,1.55043365,673.94,672.71,1.10483313]
[1738067773136,1.84719597,673.94,672.71,1.10483313]